Cogmind - Beta 15 @@@ ROGUE MODE // 2025.09.10 @ 21:20:04 Player: Tuja Result: Self-destructed Performance ------------- Evolutions (7) 3500 Regions Visited (15) 3000 Robots Destroyed (85) 425 Value Destroyed (3677) 3677 Prototype IDs (25) 500 Alien Tech Used (0) 0 Bonus (2322) 2322 TOTAL SCORE: 13424 Bonus ------- High Alert Combat Kills 101 Follower Combat Kills 21 Entered Garrisons 400 Used RIF Installer 1500 Aligned with FarCom 300 Cogmind --------- Core Integrity 36/1300 Matter 236/300 Energy 99/100 System Corruption 6% Temperature Cool (0) Movement Core (50) Location -3/Research Parts ------- > --- POWER (1) -------- (None) > --- PROPULSION (4) --- (None) > --- UTILITY (14) ----- Enhanced Optical Array Hacking Suite > --- WEAPON (2) ------- (None) > --- INVENTORY (5) ---- Authchip [R/Combat] Authchip [R/Combat] Authchip [R/Combat] Authchip [R/Combat] Datajack Peak State ------------ > --- POWER ------------ Micro Nuclear Core > --- PROPULSION ------- Flying Fortress v7 > --- UTILITY ---------- Advanced Heat Sink Large Storage Unit Improved Trap Scanner Advanced Visual Processing Unit Improved Reaction Control System Improved Light Armor Plating Improved Light Armor Plating EM Shield Hacking Suite Hacking Suite System Shield Advanced System Shield Relay Coupler [NC] System Restoration Module > --- WEAPON ----------- Mass Driver Ionic Axe > --- INVENTORY -------- Micro Antimatter Reactor Centrium Wheel Authchip [R/Combat] Authchip [R/Combat] Authchip [R/Combat] Authchip [R/Combat] Authchip [R/Combat] Authchip [R/Combat] Relay Coupler [Brawler] Relay Coupler [Heavy] Mini Drone Bay Proton Missile Launcher Datajack Improved Remote Datajack [Rating: 105] Favorites ----------- Power Micro Nuclear Core Engine Light Ion Engine Power Core Micro Nuclear Core Reactor Micro Antimatter Reactor Propulsion Light Treads Treads Light Treads Wheel Compact Wheel Flight Unit Flying Fortress v7 Utility Large Storage Unit Device Trap Scanner Storage Large Storage Unit Processor Advanced Visual Processing Unit Hackware Hacking Suite Protection Medium Armor Plating Weapon Assault Rifle Energy Gun Particle Gun Ballistic Gun Assault Rifle Ballistic Cannon Mass Driver Launcher Proton Missile Launcher Impact Weapon Hammer Slashing Weapon Ionic Axe Piercing Weapon Spear Special Melee Weapon Datajack Build | -11 -10 -10 -10 -9 -8 -8 -8 -8 -7 -6 -5 -4 -4 -4 -3 ------- Run | Yrd Mat Min Exi Min Mat Gar Mat Gar Fac Fac Fac Fac Upp Upp Res Slots Evolved 14 | . . . . . 4 . . . 2 2 2 2 . . 2 Power . | . . . . . . . . . . . . . . . . Propulsion 2 | . . . . . 2 . . . . . . . . . . Utility 12 | . . . . . 2 . . . 2 2 2 2 . . 2 Weapon . | . . . . . . . . . . . . . . . . Parts Attached 77 | 5 5 2 1 . 16 10 2 4 7 3 9 2 2 . 9 Power 6 | . 1 . 1 . . 1 . 1 1 . . . . . 1 Engine 2 | . 1 . 1 . . . . . . . . . . . . Core 3 | . . . . . . 1 . 1 1 . . . . . . Reactor 1 | . . . . . . . . . . . . . . . 1 Propulsion 14 | 2 . 2 . . 7 2 . . . . . . . . 1 Treads 9 | 2 . 2 . . 4 1 . . . . . . . . . Leg . | . . . . . . . . . . . . . . . . Wheel 4 | . . . . . 3 . . . . . . . . . 1 Hover . | . . . . . . . . . . . . . . . . Flight 1 | . . . . . . 1 . . . . . . . . . Utility 37 | 1 3 . . . 6 3 1 . 5 3 6 2 . . 7 Device 11 | . 1 . . . 1 . . . . 1 3 1 . . 4 Storage 3 | 1 1 . . . . . . . . . . . . . 1 Processor 4 | . . . . . . 2 . . . 1 . . . . 1 Hackware 7 | . . . . . . . 1 . 3 1 1 1 . . . Protection 12 | . 1 . . . 5 1 . . 2 . 2 . . . 1 Artifact . | . . . . . . . . . . . . . . . . Weapon 20 | 2 1 . . . 3 4 1 3 1 . 3 . 2 . . Energy Gun 3 | . . . . . 1 . . 1 1 . . . . . . Energy Cannon . | . . . . . . . . . . . . . . . . Ballistic Gun 8 | 2 1 . . . 2 1 . 2 . . . . . . . Ballistic Cannon 1 | . . . . . . . . . . . . . 1 . . Launcher 2 | . . . . . . 1 . . . . . . 1 . . Special Weapon . | . . . . . . . . . . . . . . . . Impact Weapon 2 | . . . . . . 1 . . . . 1 . . . . Slashing Weapon 2 | . . . . . . . . . . . 2 . . . . Piercing Weapon 1 | . . . . . . . 1 . . . . . . . . Special Melee Weapon 1 | . . . . . . 1 . . . . . . . . . Unidentified Prototypes 2 | . . . . . . . . . 1 . 1 . . . . Parts Lost 48 | . . . . . 13 6 . 3 3 . 1 . . . 22 Power 5 | . . . . . 1 . . 1 1 . . . . . 2 Propulsion 11 | . . . . . 5 4 . . . . . . . . 2 Utility 24 | . . . . . 4 2 . 1 1 . 1 . . . 15 Weapon 8 | . . . . . 3 . . 1 1 . . . . . 3 Highest Loss Streak 14 | . . . . . 6 3 . 2 2 . 1 . . . 14 To Critical Strikes . | . . . . . . . . . . . . . . . . Average Backups 13 | 2 12 14 13 12 11 11 15 14 14 14 15 14 15 15 14 Power . | . 2 1 . . . . . . . . . . 1 1 . Propulsion . | . 2 2 1 1 1 . . . . . . . . . . Utility 8 | . 4 6 7 7 6 5 13 12 10 10 12 11 11 11 9 Weapon 2 | . 2 3 3 3 2 3 . . 2 2 1 2 1 1 1 Tool/Special . | . . . . . . . . . . . . . . . . Unused Backups 30 | . 5 1 1 1 3 2 1 2 2 . 1 . . . 11 Power 3 | . . 1 . . . . . . . . . . . . 2 Propulsion 3 | . 2 . 1 . . . . . . . . . . . . Utility 17 | . 2 . . . 3 1 1 2 . . . . . . 8 Weapon 5 | . 1 . . 1 . 1 . . 2 . . . . . . Tool/Special 2 | . . . . . . . . . . . 1 . . . 1 Average Slot Usage (%) 79 | . 90 100 100 100 81 74 72 70 73 75 79 78 84 84 74 Engine 2 | . 5 14 14 14 3 . . . . . . . . . . Core 3 | . . . . . . 1 9 8 6 6 5 5 5 5 3 Treads 9 | . 28 28 28 28 17 17 . . . . . . . . . Wheel 1 | . . . . . 8 . . . . . . . . . . Flight 3 | . . . . . . 1 9 8 6 6 4 5 5 5 3 Device 10 | . 6 . . . 8 9 9 9 6 6 13 16 21 21 20 Storage 8 | . 14 14 14 14 9 9 9 9 7 6 5 5 5 5 4 Processor 1 | . . . . . . 1 . . . 5 5 5 5 5 4 Hackware 10 | . . . . . . . 8 9 22 23 24 24 26 26 21 Protection 9 | . 7 14 14 14 16 16 9 8 6 6 5 5 5 5 3 Energy Gun 1 | . . . . . 4 2 . . 2 . . . . . . Ballistic Gun 10 | . 28 28 28 28 13 9 9 8 9 6 . . . . . Piercing Weapon 1 | . . . . . . . 5 8 2 4 1 . . . . Special Melee Weapon 1 | . . . . . . . . . . . 4 5 3 . 1 Peak Build Rating 105 | 5 10 10 13 13 21 49 54 54 59 68 87 94 99 99 105 Average Rating 47 | 4 8 9 11 12 18 21 52 52 55 65 79 89 95 99 92 On Entrance 45 | . 5 10 10 13 13 19 49 54 49 59 68 87 94 99 99 Naked Turns . | . . . . . . . . . . . . . . . . Heaviest Build 50 | 8 34 34 36 36 45 38 35 37 35 35 41 42 50 50 50 Greatest Support 80 | 40 40 40 40 40 80 60 50 50 50 50 50 50 50 50 50 Greatest Overweight (x) 13 | 2 . . . . 3 . . . . . 13 . . . 2 Average Overweight (x) . | . . . . . . . . . . . . . . . . Largest Inventory Capacity 15 | 8 15 15 15 15 15 15 15 15 15 15 15 15 15 15 15 Average Capacity 14 | 7 13 15 15 15 15 15 15 15 15 15 15 15 15 15 14 Most Carried 15 | 6 15 15 15 15 15 15 15 15 15 15 15 15 15 15 15 Average Carried 14 | 2 12 14 14 14 14 14 14 14 14 14 14 14 14 15 14 Final Capacity 15 | 8 15 15 15 15 15 15 15 15 15 15 15 15 15 15 5 Final Carried 15 | 6 15 15 15 15 15 15 15 15 15 15 15 15 15 15 5 Class Distribution -------------------- 31% | Mutant 18% | Bothacker-Mutant 17% | Scavenger-Mutant 16% | Hacker-Scout 6% | Hacker-Mutant 5% | Bothacker-Scout 4% | Hacker-Ninja Dominant Class ---------------- Mutant | -10/Materials Mutant | -10/Mines Mutant | -10/Exiles Mutant | -9/Mines Mutant | -8/Materials Scavenger-Mutant | -8/Garrison Mutant | -8/Materials Bothacker-Mutant | -8/Garrison Bothacker-Mutant | -7/Factory Bothacker-Scout | -6/Factory Hacker-Scout | -5/Factory Hacker-Scout | -4/Factory Hacker-Mutant | -4/Upper Caves Hacker-Mutant | -4/Upper Caves Hacker-Scout | -3/Research Resources | -11 -10 -10 -10 -9 -8 -8 -8 -8 -7 -6 -5 -4 -4 -4 -3 ----------- Run | Yrd Mat Min Exi Min Mat Gar Mat Gar Fac Fac Fac Fac Upp Upp Res Matter Collected 2448 | 208 342 32 . 40 556 365 21 154 96 . 256 . 106 . 272 Remotely . | . . . . . . . . . . . . . . . . Salvage Created 3049 | 8 428 67 . 87 1198 376 35 285 96 . 123 . . . 346 Parts 168 | 2 32 3 . 5 69 22 . 13 9 . 5 . . . 8 Haulers Intercepted 1 | . 1 . . . . . . . . . . . . . . Recyclers Shooed 7 | . 1 . . . 4 . . . . . . . . . 2 Parts Field Recycled . | . . . . . . . . . . . . . . . . Retrieved Matter . | . . . . . . . . . . . . . . . . Parts Self-Destructed . | . . . . . . . . . . . . . . . . Prevented . | . . . . . . . . . . . . . . . . Kills | -11 -10 -10 -10 -9 -8 -8 -8 -8 -7 -6 -5 -4 -4 -4 -3 ------- Run | Yrd Mat Min Exi Min Mat Gar Mat Gar Fac Fac Fac Fac Upp Upp Res Combat Hostiles Destroyed 70 | . 10 . . 2 22 17 . 8 2 . 2 . . . 7 Melee 10 | . . . . . . 1 . 8 . . 1 . . . . Guns 44 | . 10 . . 2 22 8 . . 2 . . . . . . Cannons 6 | . . . . . . . . . . . . . . . 6 AOE 9 | . . . . . . 8 . . . . . . . . 1 Classes Destroyed 12 | 1 6 . . 1 3 1 . . . . . . . . . Worker 1 | . . . . . 1 . . . . . . . . . . Builder 1 | . 1 . . . . . . . . . . . . . . Tunneler 1 | 1 . . . . . . . . . . . . . . . Hauler 1 | . 1 . . . . . . . . . . . . . . Recycler 6 | . 1 1 . . 3 . . . . . . . . . 1 Operator 2 | . 2 . . . . . . . . . . . . . . Watcher 3 | . . . . . 1 . 1 . . . 1 . . . . Swarmer 23 | . 6 . . . 4 6 . 3 . . . . . . 4 Grunt 28 | . 4 . . 1 12 6 . 5 . . . . . . . Brawler 4 | . . . . 1 1 2 . . . . . . . . . Sentry 5 | . . . . . 5 . . . . . . . . . . Programmer 10 | . . . . . . 3 . . 2 . 2 . . . 3 Best Kill Streak 7 | 1 3 1 . 2 5 7 1 4 1 . 1 . . . 5 Combat Bots Only 7 | . 3 . . 2 5 7 . 4 1 . 1 . . . 4 Max Kills in Single Turn 2 | 1 2 1 . 1 2 2 1 1 1 . 1 . . . 1 Gunslinging 1 | . 1 . . . 1 . . . . . . . . . . Exploded 2 | . . . . . . 2 . . . . . . . . 1 Melee 1 | . . . . . . 1 . 1 . . 1 . . . . Uniques/NPCs Destroyed . | . . . . . . . . . . . . . . . . Combat | -11 -10 -10 -10 -9 -8 -8 -8 -8 -7 -6 -5 -4 -4 -4 -3 -------- Run | Yrd Mat Min Exi Min Mat Gar Mat Gar Fac Fac Fac Fac Upp Upp Res Hostile Shots Fired 694 | . 44 . . 8 160 88 1 57 36 . 24 . 6 . 270 Missed 239 | . 10 . . 2 38 25 . 17 19 . 13 . 3 . 112 Hits 455 | . 34 . . 6 122 63 1 40 17 . 11 . 3 . 158 Melee 3 | . . . . 2 1 . . . . . . . . . . Projectile 452 | . 34 . . 4 121 63 1 40 17 . 11 . 3 . 158 Critical Strikes 23 | . . . . . 5 3 . 3 1 . 2 . . . 9 Damage Taken 7555 | . 320 . . 88 1822 866 14 522 243 . 161 . 73 . 3446 Core 1847 | . 38 . . . 254 110 14 80 44 . 43 . . . 1264 Absorbed by Shields . | . . . . . . . . . . . . . . . . Ignored by Resistances 166 | . . . . . . . . . . . 59 . 1 . 106 Regen/Repaired (Parts) 18 | . . . . . . . . . 18 . . . . . . Core Remaining (%) 84 | 100 . . . 84 . . . 16 93 100 95 . . 100 . Volleys Fired 261 | . 42 2 . 5 108 34 . 9 18 . . . 7 . 36 Largest 2 | . 2 2 . 2 2 2 . 2 2 . . . 1 . 2 Hottest 86 | . 40 40 . 40 85 85 . 85 70 . . . 39 . 86 Shots Fired 450 | . 84 4 . 10 203 66 1 11 25 . . . 7 . 39 Gun 388 | . 84 4 . 10 203 50 1 11 25 . . . . . . Cannon 34 | . . . . . . . . . . . . . . . 34 Launcher 28 | . . . . . . 16 . . . . . . 7 . 5 Special . | . . . . . . . . . . . . . . . . Kinetic 364 | . 84 4 . 10 166 42 1 5 18 . . . . . 34 Thermal 51 | . . . . . 37 8 . 6 . . . . . . . Explosive 16 | . . . . . . 16 . . . . . . . . . Electromagnetic 19 | . . . . . . . . . 7 . . . 7 . 5 Robot Hit Streak 23 | . 7 2 . 8 23 21 . 2 5 . . . . . 15 Robot Miss Streak 4 | . 4 1 . 2 3 3 . 1 1 . . . . . 3 Penetration Max . | . . . . . . . . . . . . . . . . Secondary Targets 4 | . 2 . . 1 1 . . . . . . . . . . Max Gunslinging Chain 1 | . 1 . . 1 1 . . . . . . . . . . Shots Hit Robots 358 | . 56 2 . 8 154 49 1 26 21 3 7 . . . 31 Core Hits 172 | . 23 2 . 4 61 37 . 11 8 . 1 . 5 . 20 Critical Kills 2 | . . . . . 1 1 . . . . . . . . . Critical Parts Destroyed 2 | . . . . . 1 . . . . . 1 . . . . Critical Strikes 6 | . . . . . 3 1 . . . . 1 . . . 1 Burn 1 | . . . . . 1 . . . . . . . . . . Destroy 3 | . . . . . 2 1 . . . . . . . . . Blast 1 | . . . . . . . . . . . . . . . 1 Smash 1 | . . . . . . . . . . . 1 . . . . Melee Attacks 163 | . . . . . . 26 11 72 4 7 21 . 7 . 15 Impact 39 | . . . . . . 20 3 . . . 16 . . . . Slashing 22 | . . . . . . . . . . . 3 . 7 . 12 Piercing 91 | . . . . . . . 8 72 4 5 2 . . . . Sneak Attacks 13 | . . . . . . 6 1 1 . 2 . . . . 3 Combat Hostiles 1 | . . . . . . . . 1 . . . . . . . Follow-up Attacks . | . . . . . . . . . . . . . . . . Damage Inflicted 7292 | 2 698 37 . 96 2052 1533 55 700 167 44 334 . 170 . 1404 Guns 3484 | . 697 22 . 96 2044 399 . 59 167 . . . . . . Cannons 943 | . . . . . . . . . . . . . . . 943 Explosions 1758 | . . . . . . 1134 . . . . . . 170 . 454 Melee 1074 | . . . . . . . 55 641 . 44 334 . . . . Ramming 33 | 2 1 15 . . 8 . . . . . . . . . 7 Kinetic 3812 | . 697 22 . 96 1598 312 . . 144 . . . . . 943 Thermal 592 | . . . . . 446 87 . 59 . . . . . . . Explosive 1134 | . . . . . . 1134 . . . . . . . . . Electromagnetic 647 | . . . . . . . . . 23 . . . 170 . 454 Impact 389 | . . . . . . . 55 . . . 334 . . . . Slashing . | . . . . . . . . . . . . . . . . Piercing 685 | . . . . . . . . 641 . 44 . . . . . Highest Corruption 6 | . . . . . . 4 4 4 1 . 2 . . . 6 Average Corruption 3 | . . . . . . 3 4 4 1 . 1 . . . 1 Corruption Purged 3 | . . . . . . . . . . . 2 . . . 1 Corruption Blocked . | . . . . . . . . . . . . . . . . Effects 44 | . . . . . . 5 5 28 . . 1 . . . 5 Message Errors 9 | . . . . . . 2 . 4 . . 1 . . . 2 Matter Fused 11 | . . . . . . 1 2 8 . . . . . . . Heat Flow Errors 6 | . . . . . . . 1 4 . . . . . . 1 Energy Discharges 1 | . . . . . . 1 . . . . . . . . . Data Loss (minor) 8 | . . . . . . . 1 5 . . . . . . 2 Data Loss (major) 4 | . . . . . . . . 4 . . . . . . . Misfires 2 | . . . . . . . 1 1 . . . . . . . Alerts 1 | . . . . . . . . 1 . . . . . . . Weapon Failures 2 | . . . . . . 1 . 1 . . . . . . . Overload Shots . | . . . . . . . . . . . . . . . . Overflow Damage 223 | . . . . . . 19 20 8 . 9 145 . . . 22 Projectiles 22 | . . . . . . . . . . . . . . . 22 Explosions 19 | . . . . . . 19 . . . . . . . . . Melee 182 | . . . . . . . 20 8 . 9 145 . . . . Knockbacks 15 | . . . . . . . 1 . . . 2 . . . 12 Impact 3 | . . . . . . . 1 . . . 2 . . . . Kinetic 12 | . . . . . . . . . . . . . . . 12 Secondary . | . . . . . . . . . . . . . . . . Self-Inflicted Damage 91 | . . . . . . 35 . . . . . . 1 . 55 Shots 7 | . . . . . . 2 . . . . . . 1 . 4 Rammed 9 | . 2 2 . . 3 . . . . . . . . . 2 Targets Rammed 11 | 1 2 2 . . 3 1 . . . . . . . . 2 Kicked . | . . . . . . . . . . . . . . . . Crushed 2 | 1 . . . . . 1 . . . . . . . . . Highest Temperature 220 | . 2 . . 2 208 136 220 213 12 . . . . . 134 Average Temperature 55 | . 2 . . 2 51 32 109 81 4 . . . . . 72 Received Heat Transfer 1726 | . 96 . . 24 891 234 9 288 . . . . 9 . 175 Siege Activations . | . . . . . . . . . . . . . . . . Martial Activations . | . . . . . . . . . . . . . . . . Shielding Activations . | . . . . . . . . . . . . . . . . Robots Disrupted . | . . . . . . . . . . . . . . . . Combat Hostiles . | . . . . . . . . . . . . . . . . Robots Corrupted 3 | . . . . . . . 1 . . . 2 . . . . Combat Hostiles 1 | . . . . . . . . . . . 1 . . . . Parts Fried 5 | . . . . . . . 2 . . . 2 . . . 1 Impact Corruptions 9 | . . . . . . . 1 . . . 7 . . . 1 Robots Melted . | . . . . . . . . . . . . . . . . Combat Hostiles . | . . . . . . . . . . . . . . . . Parts Melted 1 | . . . . . 1 . . . . . . . . . . Heat Transferred 1517 | . . . . . 1147 222 . 148 . . . . . . . Parts Sabotaged . | . . . . . . . . . . . . . . . . Parts Stolen . | . . . . . . . . . . . . . . . . Parts Stripped . | . . . . . . . . . . . . . . . . Power Chain Reactions . | . . . . . . . . . . . . . . . . Alert | -11 -10 -10 -10 -9 -8 -8 -8 -8 -7 -6 -5 -4 -4 -4 -3 ------- Run | Yrd Mat Min Exi Min Mat Gar Mat Gar Fac Fac Fac Fac Upp Upp Res Maximum Alert Level 3 | . . . . . . 3 1 2 1 . . . . . . Low Security (%) 83 | 100 100 100 . 100 100 17 65 81 93 100 100 100 . . 100 Level 1 7 | . . . . . . 24 34 12 6 . . . . . . Level 2 7 | . . . . . . 42 . 6 . . . . . . . Level 3 2 | . . . . . . 14 . . . . . . . . . Level 4 . | . . . . . . . . . . . . . . . . Level 5 . | . . . . . . . . . . . . . . . . High Security . | . . . . . . . . . . . . . . . . Max Security . | . . . . . . . . . . . . . . . . Peak Influence 817 | 5 112 39 . 50 152 817 397 401 210 16 34 10 . . 77 Initial 397 | . 3 39 . . 3 80 397 30 210 4 . 7 . . 39 Average 115 | . 35 3 . 26 54 463 152 152 95 1 2 1 . . 13 Influence Increases 3154 | 5 339 5 . 50 611 857 100 401 116 20 143 10 150 . 347 Destroy 0b10 Robot/C 1460 | . 200 . . 40 440 400 . 160 40 . 40 . . . 140 Destroy 0b10 Robot/NC 75 | 5 25 5 . . 25 . 5 . . . 5 . . . 5 Destroy Leader 228 | . 42 . . 10 92 20 2 10 20 . 12 . . . 20 Allied During Kill 10 | . . . . . . 10 . . . . . . . . . Successful Hack 170 | . 11 . . . 7 14 24 . 39 16 49 10 . . . Select Force Hacks 60 | . 60 . . . . . . . . . . . . . . Disable Machine 75 | . . . . . 15 . 15 . . . . . . . 45 Anti-Garrison Action 400 | . . . . . . 250 . 150 . . . . . . . Destroy Structure 211 | . 1 . . . 2 103 9 36 2 4 22 . . . 32 Partial Spotted 45 | . . . . . . . . 30 . . 15 . . . . Lose Combat Pursuer 420 | . . . . . 30 60 45 15 15 . . . 150 . 105 Influence Decreases 3136 | . 243 106 . 40 497 164 870 47 507 30 128 25 64 27 388 Entered New Map 794 | . 2 62 . . 7 44 420 17 191 6 . 8 . 17 20 Time Decay 1573 | . 241 44 . 40 379 . 150 . 286 24 122 17 64 10 196 Lost Part 405 | . . . . . 111 60 . 30 30 . 2 . . . 172 Lost Ally 64 | . . . . . . 60 . . . . 4 . . . . Purge Threat 300 | . . . . . . . 300 . . . . . . . . Squads Dispatched 21 | . 4 . . . 2 . 1 . 2 3 2 . . . 7 Investigation 3 | . 2 . . . . . . . . 1 . . . . . Extermination 7 | . . . . . . . . . 2 1 2 . . . 2 Reinforcement 7 | . 2 . . . 1 . 1 . . 1 . . . . 2 Assault 2 | . . . . . . . . . . . . . . . 2 Garrison 2 | . . . . . 1 . . . . . . . . . 1 Intercept . | . . . . . . . . . . . . . . . . Searches Triggered . | . . . . . . . . . . . . . . . . Construction Impeded . | . . . . . . . . . . . . . . . . Haulers Reinforced . | . . . . . . . . . . . . . . . . Active Scanning Responses . | . . . . . . . . . . . . . . . . Cargo Convoy Interrupts . | . . . . . . . . . . . . . . . . Stealth | -11 -10 -10 -10 -9 -8 -8 -8 -8 -7 -6 -5 -4 -4 -4 -3 --------- Run | Yrd Mat Min Exi Min Mat Gar Mat Gar Fac Fac Fac Fac Upp Upp Res Distress Signals 6 | . 1 . . . 3 . 1 . 1 . . . . . . Communications Jammed . | . . . . . . . . . . . . . . . . Distress Signals . | . . . . . . . . . . . . . . . . Times Spotted 138 | . 15 . . 2 34 22 7 9 6 2 5 . 7 . 29 Peak Tracking Total 13 | . 3 . . 2 6 12 5 5 2 1 2 . 4 . 13 Tactical Retreats 13 | . . . . . 2 1 3 1 1 . . . 3 . 2 Traps | -11 -10 -10 -10 -9 -8 -8 -8 -8 -7 -6 -5 -4 -4 -4 -3 ------- Run | Yrd Mat Min Exi Min Mat Gar Mat Gar Fac Fac Fac Fac Upp Upp Res Traps Triggered 2 | . . . . . . . . 2 . . . . . . . Indirectly . | . . . . . . . . . . . . . . . . Trap Hack Attempts 35 | . . . . . . 14 . . 2 9 10 . . . . Triggered . | . . . . . . . . . . . . . . . . Disarmed 4 | . . . . . . 2 . . 1 1 . . . . . Reprogrammed 2 | . . . . . . . . . . . 2 . . . . Reused . | . . . . . . . . . . . . . . . . Traps Extracted . | . . . . . . . . . . . . . . . . Installed 4 | . . 4 . . . . . . . . . . . . . Triggered . | . . . . . . . . . . . . . . . . Most Traps Carried 2 | . . 2 . . . . . . . . . . . . . Machines | -11 -10 -10 -10 -9 -8 -8 -8 -8 -7 -6 -5 -4 -4 -4 -3 ---------- Run | Yrd Mat Min Exi Min Mat Gar Mat Gar Fac Fac Fac Fac Upp Upp Res Machines Disabled 9 | . . . . . 1 3 1 1 . . . . . . 3 Max in Single Turn 1 | . . . . . 1 1 1 1 . . . . . . 1 Garrison Access 6 | . . . . . . . . . 1 1 3 . . . 1 Garrison Relay 4 | . . . . . . 3 . 1 . . . . . . . Machines Repaired . | . . . . . . . . . . . . . . . . Machines Dismantled . | . . . . . . . . . . . . . . . . Machines Sabotaged . | . . . . . . . . . . . . . . . . Overloaded Fab Kills . | . . . . . . . . . . . . . . . . Hacking | -11 -10 -10 -10 -9 -8 -8 -8 -8 -7 -6 -5 -4 -4 -4 -3 --------- Run | Yrd Mat Min Exi Min Mat Gar Mat Gar Fac Fac Fac Fac Upp Upp Res Machines Accessed 53 | . 5 . 1 . 8 1 4 2 6 11 11 1 1 . 2 Terminals 31 | . 2 . . . 6 1 3 2 1 7 7 1 . . 1 Fabricators 5 | . . . . . . . . . 2 3 . . . . . Repair Stations 2 | . 1 . . . . . . . 1 . . . . . . Recycling Units 6 | . 2 . . . 1 . . . 1 . 1 . . . 1 Scanalyzers . | . . . . . . . . . . . . . . . . Garrison Access 7 | . . . . . 1 . 1 . 1 1 3 . . . . Total Hacks 141 | . 14 . 1 . 17 1 13 2 13 40 34 3 1 . 2 Successful 82 | . 9 . 1 . 8 1 10 1 10 18 20 2 1 . 1 Failed 59 | . 5 . . . 9 . 3 1 3 22 14 1 . . 1 Catastrophic 13 | . . . . . 4 . . 1 . 3 4 . . . 1 Database Lockouts . | . . . . . . . . . . . . . . . . Manual 86 | . 12 . 1 . 8 . 8 . 6 36 13 1 . . 1 Terminals 103 | . 8 . . . 15 1 12 2 3 32 26 3 . . 1 Fabricators 11 | . . . . . . . . . 5 6 . . . . . Repair Stations 4 | . 2 . . . . . . . 2 . . . . . . Recycling Units 10 | . 4 . . . 1 . . . 1 . 3 . . . 1 Scanalyzers . | . . . . . . . . . . . . . . . . Garrison Access 11 | . . . . . 1 . 1 . 2 2 5 . . . . Terminal Hacks 35 | . 2 . 1 . 3 1 6 1 1 11 7 1 1 . . Part Schematic 1 | . . . . . . . 1 . . . . . . . . Robot Schematic 2 | . . . . . . . . . . 2 . . . . . Open Door 1 | . . . . . . . . . . . . . 1 . . Level Access Points 1 | . . . . . . . . . . . 1 . . . . Branch Access Points 1 | . . . . . . . . . . 1 . . . . . Emergency Access Points 3 | . . . . . . 1 1 1 . . . . . . . Terminal Index 4 | . 1 . . . . . 1 . . 1 1 . . . . Fabricator Index 1 | . . . . . . . . . . 1 . . . . . Recycling Unit Index 1 | . 1 . . . . . . . . . . . . . . Garrison Index 1 | . . . . . . . . . . 1 . . . . . Alert Level 1 | . . . . . 1 . . . . . . . . . . Unreport Threat 2 | . . . . . . . 2 . . . . . . . . Locate Traps 4 | . . . . . 1 . . . 1 . 1 1 . . . Dispatch Records 1 | . . . . . . . 1 . . . . . . . . Security Status 1 | . . . . . . . . . . 1 . . . . . Surveillance Status 1 | . . . . . . . . . . 1 . . . . . Patrol Status 2 | . . . . . . . . . . 1 1 . . . . Transport Status 1 | . . . . . 1 . . . . . . . . . . Reinforcement Status 1 | . . . . . . . . . . . 1 . . . . Recall Extermination 1 | . . . . . . . . . . . 1 . . . . Registered Components 1 | . . . . . . . . . . . 1 . . . . Zone Layout 2 | . . . . . . . . . . 2 . . . . . Proto ID Catalog 1 | . . . 1 . . . . . . . . . . . . Fabricator Hacks 1 | . . . . . . . . . 1 . . . . . . Build 1 | . . . . . . . . . 1 . . . . . . Repair Station Hacks 2 | . . . . . . . . . 2 . . . . . . Scan Component 1 | . . . . . . . . . 1 . . . . . . Repair 1 | . . . . . . . . . 1 . . . . . . Recycling Unit Hacks 7 | . 2 . . . 1 . . . 1 . 2 . . . 1 Report Inventory 6 | . 2 . . . 1 . . . 1 . 1 . . . 1 Retrieve Components 1 | . . . . . . . . . . . 1 . . . . Scanalyzer . | . . . . . . . . . . . . . . . . Garrison Access Hacks 11 | . . . . . 1 . 1 . 2 2 5 . . . . Unlock Access 2 | . . . . . 1 . 1 . . . . . . . . Seal Access 5 | . . . . . . . . . 1 1 3 . . . . Coupler Status 4 | . . . . . . . . . 1 1 2 . . . . Unauthorized Hacks 26 | . 5 . . . 3 . 3 . 3 5 6 1 . . . Terminals 19 | . 2 . . . 3 . 3 . 1 4 5 1 . . . Assimilate 2 | . . . . . . . . . . 1 1 . . . . Botnet 17 | . 2 . . . 3 . 3 . 1 3 4 1 . . . Fabricators 3 | . . . . . . . . . 2 1 . . . . . Fabnet 3 | . . . . . . . . . 2 1 . . . . . Repair Stations 1 | . 1 . . . . . . . . . . . . . . Mechanics 1 | . 1 . . . . . . . . . . . . . . Recycling Units 3 | . 2 . . . . . . . . . 1 . . . . Monitor 1 | . . . . . . . . . . . 1 . . . . Tunnel 2 | . 2 . . . . . . . . . . . . . . Scanalyzers . | . . . . . . . . . . . . . . . . Garrison Access . | . . . . . . . . . . . . . . . . Data Cores Recovered . | . . . . . . . . . . . . . . . . Used . | . . . . . . . . . . . . . . . . Hacking Detections 42 | . 2 . . . 7 1 4 2 4 10 9 1 . . 2 Full Trace Events 1 | . . . . . . . . . . 1 . . . . . Feedback Events . | . . . . . . . . . . . . . . . . Feedback Blocked . | . . . . . . . . . . . . . . . . Robot Schematics Acquired 2 | . . . . . . . . . . 2 . . . . . Robots Built . | . . . . . . . . . . . . . . . . Authchips . | . . . . . . . . . . . . . . . . Time . | . . . . . . . . . . . . . . . . Total Robot Build Rating . | . . . . . . . . . . . . . . . . Part Schematics Acquired 1 | . . . . . . . 1 . . . . . . . . Parts Built 1 | . . . . . . . . . 1 . . . . . . Authchips . | . . . . . . . . . . . . . . . . Time 53 | . . . . . . . . . 53 . . . . . . Total Part Build Rating 6 | . . . . . . . . . 6 . . . . . . Parts Repaired 1 | . . . . . . . . . 1 . . . . . . Time 19 | . . . . . . . . . 19 . . . . . . Parts Recycled . | . . . . . . . . . . . . . . . . Recycled Matter . | . . . . . . . . . . . . . . . . Retrieved Matter . | . . . . . . . . . . . . . . . . Retrieved Components . | . . . . . . . . . . . . . . . . Parts Scanalyzed . | . . . . . . . . . . . . . . . . Part Schematics Acquired . | . . . . . . . . . . . . . . . . Parts Damaged . | . . . . . . . . . . . . . . . . Bothacking | -11 -10 -10 -10 -9 -8 -8 -8 -8 -7 -6 -5 -4 -4 -4 -3 ------------ Run | Yrd Mat Min Exi Min Mat Gar Mat Gar Fac Fac Fac Fac Upp Upp Res Used RIF Installer 3 | . . . . . . 2 . 1 . . . . . . . Watcher Feeds 1 | . . . . . . 1 . . . . . . . . . Structural Interface 1 | . . . . . . . . 1 . . . . . . . Robots Hacked 2 | . . . . . . . . . . . . . . . 2 Non-combat 2 | . . . . . . . . . . . . . . . 2 Combat . | . . . . . . . . . . . . . . . . Robot Hacks Applied 3 | . . . . . . . . . . . . . . . 3 no_distress 1 | . . . . . . . . . . . . . . . 1 ignore_repairs 2 | . . . . . . . . . . . . . . . 2 Relay Couplers Released 20 | . . . . . . 13 . 4 . . . . . . 3 Machine Destruction 20 | . . . . . . 13 . 4 . . . . . . 3 Attached 2 | . . . . . . . . . 1 . . 1 . . . Fabnet Peak Effective % 6 | . . . . . . . . . . 6 5 1 1 1 . Robots Rewired 4 | . . . . . . 3 . . . 1 . . . . . Allies Hacked . | . . . . . . . . . . . . . . . . Hacks Repelled . | . . . . . . . . . . . . . . . . Allies | -11 -10 -10 -10 -9 -8 -8 -8 -8 -7 -6 -5 -4 -4 -4 -3 -------- Run | Yrd Mat Min Exi Min Mat Gar Mat Gar Fac Fac Fac Fac Upp Upp Res Total Allies 6 | . . . . . . 3 . . . 2 1 . . . . Largest Group 3 | . . . . . . 3 . . . 2 1 . . . . Highest-Rated Group 48 | . . . . . . 48 . . . 42 10 . . . . Highest-Rated Ally 32 | . . . . . . 16 . . . 32 10 . . . . Total Orders 18 | . . . . . . 1 . . . 1 13 . 3 . . STAY 7 | . . . . . . . . . . . 7 . . . . ROAM 2 | . . . . . . 1 . . . 1 . . . . . FOLLOW 6 | . . . . . . . . . . . 6 . . . . EXPLORE 2 | . . . . . . . . . . . . . 2 . . RETURN 1 | . . . . . . . . . . . . . 1 . . Ally Attacks 4 | . . . . . . 4 . . . . . . . . . Total Damage 41 | . . . . . . 41 . . . . . . . . . Kills 3 | . . . . . . 3 . . . . . . . . . Allies Corrupted . | . . . . . . . . . . . . . . . . Allies Melted . | . . . . . . . . . . . . . . . . Intel | -11 -10 -10 -10 -9 -8 -8 -8 -8 -7 -6 -5 -4 -4 -4 -3 ------- Run | Yrd Mat Min Exi Min Mat Gar Mat Gar Fac Fac Fac Fac Upp Upp Res Active Infowar (turns) 9041 | . 301 . . . 1368 1406 304 1476 603 441 1275 164 615 25 1063 Optics 3617 | . . . . . . 78 23 . . 374 1275 164 615 25 1063 Sensors 301 | . 301 . . . . . . . . . . . . . . Traps 8654 | . . . . . 1368 1406 304 1476 603 441 1275 164 615 25 977 ECM 1 | . . . . . . . . . . . . . . . 1 Robot Analysis Total . | . . . . . . . . . . . . . . . . Derelict Logs Recovered 2 | . . 2 . . . . . . . . . . . . . Drone Launches 2 | . . . . . . . . . . . . . 2 . . Drone Recoveries 1 | . . . . . . . . . . . . . 1 . . Exploration | -11 -10 -10 -10 -9 -8 -8 -8 -8 -7 -6 -5 -4 -4 -4 -3 ------------- Run | Yrd Mat Min Exi Min Mat Gar Mat Gar Fac Fac Fac Fac Upp Upp Res Turns Passed 10714 | 72 653 509 530 91 1468 1406 304 1476 622 441 1275 164 615 25 1063 Spaces Moved 8909 | 40 290 302 329 47 640 908 354 763 720 681 1735 320 977 50 753 Core 110 | 10 . . . . . . . . . . 1 . . . 99 Treads 2013 | 30 290 302 329 47 425 590 . . . . . . . . . Legs . | . . . . . . . . . . . . . . . . Wheels 220 | . . . . . 215 . . . . . . . . . 5 Hover . | . . . . . . . . . . . . . . . . Flight 6566 | . . . . . . 318 354 763 720 681 1734 320 977 50 649 Fastest Speed 50 | 50 160 160 160 160 105 50 50 50 50 50 50 50 50 50 50 Average Speed 77 | 145 160 160 160 160 154 121 50 50 50 50 50 50 50 50 50 Slowest Speed 700 | 160 160 160 160 160 320 160 50 50 50 50 700 50 50 50 130 Overloaded Moves . | . . . . . . . . . . . . . . . . Propulsion Burnouts . | . . . . . . . . . . . . . . . . Robots Hopped 22 | . . . . . . . 4 . 4 2 9 . . . 3 Potential Cave-ins . | . . . . . . . . . . . . . . . . Cave-ins Triggered . | . . . . . . . . . . . . . . . . Exploration Rate (%) 37 | 4 58 68 75 17 49 70 26 44 26 21 35 6 79 9 16 Regions Visited 15 Branch Regions 5 Pre-discovered Areas 2 | . 2 . . . . . . . . . . . . . . Known Exits Taken 4 | . . 1 . . 1 . 1 . . . 1 . . . . Unknown Exits Taken 9 | 1 1 . 1 1 . . . . 1 1 . 1 1 1 . Scrap Searched 2 | . . . . 1 . . . . . . . . 1 . . Spaces Dug 48 | . . . . . . . 9 2 2 4 11 . 7 . 13 Terrain Destroyed 100 | . . . . . . 48 9 2 2 4 11 . 7 . 17 Melee 47 | . . . . . . . 9 2 2 4 11 . 7 . 12 Projectile 5 | . . . . . . . . . . . . . . . 5 AOE 48 | . . . . . . 48 . . . . . . . . . Terrain Rammed . | . . . . . . . . . . . . . . . . Walls Destroyed . | . . . . . . . . . . . . . . . . Machines Disabled . | . . . . . . . . . . . . . . . . Actions | -11 -10 -10 -10 -9 -8 -8 -8 -8 -7 -6 -5 -4 -4 -4 -3 --------- Run | Yrd Mat Min Exi Min Mat Gar Mat Gar Fac Fac Fac Fac Upp Upp Res Total 12006 | 51 397 325 334 53 914 1107 459 1738 946 767 2090 323 1083 49 1370 Wait 2399 | . 35 . . . 135 91 93 869 182 65 304 . 87 . 538 Move 8850 | 39 289 301 328 46 640 906 345 761 711 676 1717 319 976 49 747 Hop 21 | . . . . . . . 4 . 4 2 8 . . . 3 Pick Up 68 | 6 15 7 1 1 8 12 1 2 5 . 4 2 1 . 3 Fast Attach 58 | 5 4 . . . 11 2 2 6 7 2 11 . 1 . 7 Attach 24 | . . . . . 5 4 . 1 3 1 1 2 . . 7 Detach 4 | . . . . . . . . 1 . 1 . . . . 2 Swap 34 | . 1 2 1 . . 11 . 1 5 4 2 . 2 . 5 Drop 64 | . 9 7 4 1 4 6 3 6 5 . 12 . 2 . 5 Fire 261 | . 42 2 . 5 108 34 . 9 18 . . . 7 . 36 Melee 163 | . . . . . . 26 11 72 4 7 21 . 7 . 15 Ram 2 | . . . . . . . . . . . . . . . 2 Kick . | . . . . . . . . . . . . . . . . Crush 9 | 1 2 2 . . 3 1 . . . . . . . . . Escape Stasis 10 | . . . . . . . . 10 . . . . . . . Rewire . | . . . . . . . . . . . . . . . . Trap 39 | . . 4 . . . 14 . . 2 9 10 . . . . Miscellaneous . | . . . . . . . . . . . . . . . . Route ------- -11/Scrapyard -10/Materials (discovered 2 exits: [*Mat] / [*Min]) -10/Mines (discovered 3 exits: [*Mat x2] / *Exi) -10/Exiles -9/Mines -8/Materials (discovered 2 exits: *Sto / Gar) -8/Garrison (discovered 3 exits: *Mat x3) -8/Materials -8/Garrison -7/Factory -6/Factory (discovered 3 exits: *Fac / Low x2) -5/Factory (discovered 4 exits: *Fac x4) -4/Factory -4/Upper Caves -4/Upper Caves -3/Research History --------- Turn | Location | Event 3 | -11/Scrapyard | Discovered new exit (range 15) 73 | -11/Scrapyard | Entered Materials 310 | -10/Materials | Build established: Mutant 614 | -10/Materials | Discovered new exit (range 9) 625 | -10/Materials | Discovered new exit (range 16) 673 | -10/Materials | Derelicts attacked the area 726 | -10/Materials | Entered Mines 798 | -10/Mines | Discovered new exit (range 7) 946 | -10/Mines | Found a hidden stash of uninstalled traps 1131 | -10/Mines | Discovered new exit (range 11) 1171 | -10/Mines | Identified exit to Exiles 1196 | -10/Mines | Learned location of 1 exit from Materials 1228 | -10/Mines | Deemed a non-threat by the Exiles lab entrance 1235 | -10/Mines | Entered Exiles 1279 | -10/Exiles | Met 8R-AWN 1301 | -10/Exiles | Met EX-HEX 1347 | -10/Exiles | Met EX-BIN 1370 | -10/Exiles | Aligned with FarCom system 1371 | -10/Exiles | Given EX-Vault access code 1408 | -10/Exiles | Opened EX-Vault 1423 | -10/Exiles | Found Flying Fortress v7 1454 | -10/Exiles | Warned to stay clear of 0b10 Research branches 1506 | -10/Exiles | Met EX-DEC 1556 | -10/Exiles | Visited The Gauntlet 1744 | -10/Exiles | Discovered new exit (range 14) 1765 | -10/Exiles | Left Exiles lab with Flying Fortress v7 1765 | -10/Exiles | Entered Mines 1836 | -9/Mines | Discovered new exit (range 15) 1856 | -9/Mines | Entered Materials 1856 | -8/Materials | Evolved 4 slots: Propulsion x2, Utility x2 1857 | -8/Materials | Identified exit to Storage 2448 | -8/Materials | Lost 6 parts (1p2n2u1w) 2938 | -8/Materials | Lost 3 parts (2u1w) 3037 | -8/Materials | Build established: Scavenger-Mutant 3250 | -8/Materials | Garrison activated, responded to threat 3324 | -8/Materials | Identified exit to Garrison 3324 | -8/Materials | Entered Garrison 3442 | -8/Garrison | Triggered checkpoint 3576 | -8/Garrison | Garrison Relay disabled 3672 | -8/Garrison | Triggered checkpoint 3771 | -8/Garrison | Discovered new exit (range 6) 3919 | -8/Garrison | Core integrity fell below 50% 3938 | -8/Garrison | Lost 3 allies 3946 | -8/Garrison | Triggered checkpoint 3963 | -8/Garrison | Destroyed 7 combat bots 4060 | -8/Garrison | Discovered new exit (range 12) 4183 | -8/Garrison | Garrison Relay disabled 4349 | -8/Garrison | Garrison Relay disabled 4406 | -8/Garrison | Discovered new exit (range 15) 4460 | -8/Garrison | Triggered checkpoint 4554 | -8/Garrison | Installed Relay Interface Framework 4568 | -8/Garrison | Lost 3 parts (2n1u) 4704 | -8/Garrison | Triggered checkpoint 4721 | -8/Garrison | Expanded RIF knowledge: Watcher Feeds 4730 | -8/Garrison | Entered Materials 5031 | -8/Materials | Identified exit to Garrison 5034 | -8/Materials | Entered Garrison 5038 | -8/Garrison | Build established: Mutant 5073 | -8/Garrison | Garrison Relay disabled 5090 | -8/Garrison | Triggered checkpoint 5533 | -8/Garrison | Build established: Bothacker-Mutant 6063 | -8/Garrison | Triggered checkpoint 6408 | -8/Garrison | Core integrity fell below 20% 6454 | -8/Garrison | Expanded RIF knowledge: Structural Interface 6504 | -8/Garrison | Discovered new exit (range 12) 6510 | -8/Garrison | Entered Factory 6510 | -7/Factory | Evolved 2 slots: Utility x2 6984 | -7/Factory | Repaired Trap Scanner 7007 | -7/Factory | Discovered new exit (range 32) 7045 | -7/Factory | Fabricated Mni. Drone Bay (x1) 7132 | -7/Factory | Entered another Factory area 7132 | -6/Factory | Evolved 2 slots: Utility x2 7318 | -6/Factory | Identified exit to Lower Caves 7470 | -6/Factory | Build established: Bothacker-Scout 7528 | -6/Factory | Discovered new exit (range 17) 7573 | -6/Factory | Entered another Factory area 7573 | -5/Factory | Accompanied by 1 ally 7573 | -5/Factory | Evolved 2 slots: Utility x2 8095 | -5/Factory | Build established: Hacker-Scout 8738 | -5/Factory | Identified exit to Factory 8848 | -5/Factory | Entered another Factory area 8848 | -4/Factory | Evolved 2 slots: Utility x2 8895 | -4/Factory | Discovered new exit (range 19) 9012 | -4/Factory | Entered Upper Caves 9304 | -4/Upper Caves | Build established: Hacker-Mutant 9612 | -4/Upper Caves | Discovered new exit (range 10) 9627 | -4/Upper Caves | Entered another Upper Caves area 9637 | -4/Upper Caves | Discovered new exit (range 4) 9652 | -4/Upper Caves | Entered Research 9652 | -3/Research | Evolved 2 slots: Utility x2 9947 | -3/Research | Build established: Hacker-Ninja 10426 | -3/Research | Build established: Hacker-Scout 10542 | -3/Research | Garrison activated, responded to threat 10577 | -3/Research | Lost 7 parts (1p5u1w) 10697 | -3/Research | Core integrity fell below 50% 10700 | -3/Research | Spotted B-86 Titan 10710 | -3/Research | Core integrity fell below 20% 10715 | -3/Research | Self-destructed Last Messages --------------- 10704_ Relay Coupler [Heavy] tumbles out of Garrison Access. 10704_ Relay Coupler [Brawler] tumbles out of Garrison Access. 10704_ Slug penetrates Garrison Access. 10704_ Hacking Suite destroyed. 10708_ Acquired 1 matter. 10708_ Field Manipulator disabled. 10709_ H-77 Assassin misfires. 10709_ Slug penetrates Terminal. 10709_ Slug penetrates S-43 Plague. 10709_ S-43 Plague destroyed. 10711_ K-01 Serf collects debris. 10712_ P-80 Master resets H-77 Assassin, system corruption cleaned. 10712_ R-10 Processor collects Hvy. Machine Gun. 10712_ Slug penetrates Terminal. 10712_ Penetrated by Slug. 10712_ Slug penetrates Terminal. 10715_ Slug penetrates Wall. Map ----- +----------------------------------------------------+ | ?????# #?? !#?# #?????????????????? | | ?????# # ] #?# #?????????????????? | | ?????# + #?# #?????????????????? | | ?????# # #?# #??##+##+#????????? | | ?????# #?? #?# #??# #????????? | | ?????# #???? #?# #??# #????????? | | ?????#### #?????? #?# g #??# #????????? | | ????????# #????????#?# #??# #????????? | | ????????# #??????????#gg #### #????????? | | ????????# #??????????# !|! #????????? | | ????????# #??????????# g !!! #????????? | | ????????# ##########?# !* #????????? | | ????????# #?# #????????? | | ##??????# #?# k #########/#/#/###??????? | | # ##????# #?# #??# #??????? | | ????# #?# u#??# #??????? | | ???# #?# #??# % #??????? | | """???# #?# #??# "#??????? | | """ ?## ### #??# ""#??????? | | """ ?# #??# #??????? | | + k#??# #??????? | | # Y #??# #??????? | | / #??# #??????? | | ####+### o #??# #??????? | | *! ?? # #??# #??????? | | *! ??# # "" @##?# #??????? | | ! ??#% # """ ;################??????? | | #####???# # "T # #?????????? | | ????????# # R%""" # #?????????? | | ????????# # "" # #?????????? | | ????????# #h p # ####??????? | | ????????# #h # + #??????? | | ############### pk ###+########### #??????? | | # #??????# #??????? | | # kg s #??????# #??????? | | # g p #??????#+######## | | + "" #??????# | | # """ ###+###### #??????# | | # """"s # ## #??????# """""" | | # " " """ # # ######## """""" | | # "G"" # " % %## # """""" | | # !!! # " %## # | | # " %## + | | # %## # """""" | | ####+########## # ! ############## """""" | | ??????????????# ###### ###???????????# """""" | | ??????????????# # % #???????????# | | ??????????????# # #???????????# | | ??????????????# # """ #???????????########## | | ??????????????# # """ #????????????????????? | +----------------------------------------------------+ Best States ------------- Heat Dissipation 65 Energy Generation 19 Energy Capacity 250 Matter Stores 300 Matter Capacity 450 Sight Range 22 Robot Scan Range 14 Terrain Scan Density 10 ECM Strength 2 Armor Coverage 450 Resistance: EM 25 Evasion (%) 70 Target Analysis 5 Recoil Reduction 4 Offensive Hacking 20 Defensive Hacking 24 Relay Coupler Types 1 Relay Coupler Value 25 Authchip Count 8 Item Schematics ----------------- System Shield | -8/Materials | Hacked Robot Schematics ------------------ P-60 Hacker | -6/Factory | Hacked P-70 Sage | -6/Factory | Hacked Fabricated ------------ Mni. Drone Bay | x1 | -7/Factory | Preloaded Repaired ---------- Trap Scanner | 10% | -7/Factory Alien Tech Used ----------------- None Achievements -------------- None Challenges ------------ None Game ------ Seed NetworkElectrostormCyclogen Manual? 0 Play Time 02:44:10 Cumulative 112.3 hours Start 2025.09.05 @ 15:39:15 End 2025.09.10 @ 21:20:04 Sessions 9 Manual Loads 0 Difficulty Rogue Special Mode None Game No. 58 Rogue 53 Adventurer 5 Explorer 0 Win Type - Total 2 Types 1/0/1/0/0/0/0/0/0/0 Lore% 59 Gallery% 50 Achievement% 48 Wizard Run 0 Options --------- Layout 1 ASCII 0 Keyboard 0 Movement Numpad Keybinds 1 Fullscreen 1 Font 24/Smallcaps Map View 50x35 Zoom Use 0% Tactical HUD 1 Map Filters NONE Filters NONE Steam 1 RUN: 45b5a22a-8f39-42cd-9319-a5379d1fc6cb